﻿DEPARTMENT FAMILY,ENTITY,Date,Expense Type,Expense Area,Supplier,Transaction number,Amount,Description
DEPARTMENT OF HEALTH,BLACKPOOL TEACHING HOSPITALS NHS FT ,Jun-21,Facilities ,Ict Maintenance Services,Advanced Business Software And Solutions Limited,ARCMIN/00000999,"85,200.00",Computer Maintenance
DEPARTMENT OF HEALTH,BLACKPOOL TEACHING HOSPITALS NHS FT ,Jun-21,Facilities ,Ict Maintenance Services,Ascribe Ltd,PJIN-303711,"55,446.00",Computer Maintenance
DEPARTMENT OF HEALTH,BLACKPOOL TEACHING HOSPITALS NHS FT ,Jun-21,Facilities ,HARD FM ,Atlas BFW Management Ltd,1710000495,"5,812,725.01",Facilities Management Contract 
DEPARTMENT OF HEALTH,BLACKPOOL TEACHING HOSPITALS NHS FT ,Jun-21,Facilities ,Ict Telecommunications,Bt Global Services,0790326993,"29,058.18",Telephone Rental and Call Charges
DEPARTMENT OF HEALTH,BLACKPOOL TEACHING HOSPITALS NHS FT ,Jun-21,Facilities ,Ict Telecommunications,Bt Telephone Payment Centre,VP860522701471,"37,463.88",Telephone Rental and Call Charges
DEPARTMENT OF HEALTH,BLACKPOOL TEACHING HOSPITALS NHS FT ,Jun-21,Corporate ,Corporate ,Care Quality Commission,42914349,"326,557.00",Annual Subscription Fee 
DEPARTMENT OF HEALTH,BLACKPOOL TEACHING HOSPITALS NHS FT ,Jun-21,Facilities ,Ict Maintenance Services,Change Healthcare UK Holdings Limited,14501,"141,159.52",Computer Maintenance
DEPARTMENT OF HEALTH,BLACKPOOL TEACHING HOSPITALS NHS FT ,Jun-21,Corporate ,Management Accounting,Civica Uk Ltd,C/PS218024,"31,680.00",Computer Software / License Fees
DEPARTMENT OF HEALTH,BLACKPOOL TEACHING HOSPITALS NHS FT ,Jun-21,Corporate ,Director Of Operations,CPC Project Services LLP,21088,"43,177.28",External Consultancy Fees
DEPARTMENT OF HEALTH,BLACKPOOL TEACHING HOSPITALS NHS FT ,Jun-21,Corporate ,Director Of Operations,CPC Project Services LLP,21159,"34,753.14",External Consultancy Fees
DEPARTMENT OF HEALTH,BLACKPOOL TEACHING HOSPITALS NHS FT ,Jun-21,Corporate ,Procurement,East Lancashire Hospitals NHS Trust,E0105048,"87,486.00",Procurement Cluster Services 
DEPARTMENT OF HEALTH,BLACKPOOL TEACHING HOSPITALS NHS FT ,Jun-21,Facilities ,Soft FM ,Express Launderers,4503,"81,600.00",Laundry and Linen Services 
DEPARTMENT OF HEALTH,BLACKPOOL TEACHING HOSPITALS NHS FT ,Jun-21,Contractual Clinical Services,Laboratory Test Kits,Genmed.me Ltd,18861,"30,838.37",Laboratory Test Kits
DEPARTMENT OF HEALTH,BLACKPOOL TEACHING HOSPITALS NHS FT ,Jun-21,Corporate ,Corporate ,Ggi Development And Research Llp,JAN2021/22,"29,095.50",External Consultancy Fees
DEPARTMENT OF HEALTH,BLACKPOOL TEACHING HOSPITALS NHS FT ,Jun-21,Corporate ,Corporate ,Ggi Development And Research Llp,OCT2020/6,"33,379.20",Staff Consultancy And Support
DEPARTMENT OF HEALTH,BLACKPOOL TEACHING HOSPITALS NHS FT ,Jun-21,Corporate ,Corporate ,Ggi Development And Research Llp,OCT2020/7,"26,931.60",Staff Consultancy And Support
DEPARTMENT OF HEALTH,BLACKPOOL TEACHING HOSPITALS NHS FT ,Jun-21,Facilities ,Ict Maintenance Services,Idox Health Ltd,7033682,"41,220.00",Computer Maintenance
DEPARTMENT OF HEALTH,BLACKPOOL TEACHING HOSPITALS NHS FT ,Jun-21,Facilities ,Digital Identity,Insight Direct (Uk) Ltd,5319715,"25,891.90",Computer Software / License Fees
DEPARTMENT OF HEALTH,BLACKPOOL TEACHING HOSPITALS NHS FT ,Jun-21,Facilities ,Ict Maintenance Services,Insight Direct (Uk) Ltd,5322992,"33,408.00",Computer Software / License Fees
DEPARTMENT OF HEALTH,BLACKPOOL TEACHING HOSPITALS NHS FT ,Jun-21,Facilities ,Ict Maintenance Services,Integrated Medical Solutions Ltd,SIN602634,"67,294.01",Computer Maintenance
DEPARTMENT OF HEALTH,BLACKPOOL TEACHING HOSPITALS NHS FT ,Jun-21,Contractual Clinical Services,Pathology ,Lancashire Teaching Hospitals NHS Foundation Trust,15349024,"26,419.20",Pathology 
DEPARTMENT OF HEALTH,BLACKPOOL TEACHING HOSPITALS NHS FT ,Jun-21,Contractual Clinical Services,Medical Staff - Oncology,Lancashire Teaching Hospitals NHS Foundation Trust,15348556,"49,295.53",Medical Staff - Oncology
DEPARTMENT OF HEALTH,BLACKPOOL TEACHING HOSPITALS NHS FT ,Jun-21,Contractual Clinical Services,Medical Staff - Oncology,Lancashire Teaching Hospitals NHS Foundation Trust,15349164,"49,295.53",Medical Staff - Oncology
DEPARTMENT OF HEALTH,BLACKPOOL TEACHING HOSPITALS NHS FT ,Jun-21,Contractual Clinical Services,Bowel Cancer Screening,Lancashire Teaching Hospitals NHS Foundation Trust,15348600,"70,867.07",Bowel Cancer Screening
DEPARTMENT OF HEALTH,BLACKPOOL TEACHING HOSPITALS NHS FT ,Jun-21,Contractual Clinical Services,Central Lancashire Sexual Health Service,Lancashire Teaching Hospitals NHS Foundation Trust,15349148,"32,967.86",Central Lancashire Sexual Health Service
DEPARTMENT OF HEALTH,BLACKPOOL TEACHING HOSPITALS NHS FT ,Jun-21,Contractual Clinical Services,Reallocable,Manchester University NHS Foundation Trust,0000480641,"45,487.00",Placenta Clinic 
DEPARTMENT OF HEALTH,BLACKPOOL TEACHING HOSPITALS NHS FT ,Jun-21,Contractual Clinical Services,Admin - Radiology,Medica Reporting Ltd (Medica Group),15996,"86,716.00",Admin - Radiology
DEPARTMENT OF HEALTH,BLACKPOOL TEACHING HOSPITALS NHS FT ,Jun-21,Contractual Clinical Services,Medical Equipment Lease ,Medstrom Ltd,108792,"34,337.24",Med Surg Eqpt Hire
DEPARTMENT OF HEALTH,BLACKPOOL TEACHING HOSPITALS NHS FT ,Jun-21,Contractual Clinical Services,Medical Equipment Lease ,Medstrom Ltd,109901,"36,316.01",Med Surg Eqpt Hire
DEPARTMENT OF HEALTH,BLACKPOOL TEACHING HOSPITALS NHS FT ,Jun-21,Contractual Clinical Services,Haematology ,NHS Blood And Transplant,896965,"59,720.55",Blood Products
DEPARTMENT OF HEALTH,BLACKPOOL TEACHING HOSPITALS NHS FT ,Jun-21,Contractual Clinical Services,Haematology ,NHS Blood And Transplant,897198,"171,382.41",Blood Products
DEPARTMENT OF HEALTH,BLACKPOOL TEACHING HOSPITALS NHS FT ,Jun-21,Facilities ,Digital Identity,NHS Business Services Authority,0000060219,"48,002.40",External Consultancy Fees
DEPARTMENT OF HEALTH,BLACKPOOL TEACHING HOSPITALS NHS FT ,Jun-21,Corporate ,Corporate ,NHS Midlands and Lancashire CSU,7312319974,"41,750.00",Project Costs 
DEPARTMENT OF HEALTH,BLACKPOOL TEACHING HOSPITALS NHS FT ,Jun-21,Corporate ,Corporate ,NHS Providers,0000005535,"25,661.00",Books Journals and Subscriptions
DEPARTMENT OF HEALTH,BLACKPOOL TEACHING HOSPITALS NHS FT ,Jun-21,Corporate ,Digital Identity,Pa Consulting Services Ltd,0000003785,"179,940.00",External Consultancy Fees
DEPARTMENT OF HEALTH,BLACKPOOL TEACHING HOSPITALS NHS FT ,Jun-21,Corporate ,Digital Identity,Pa Consulting Services Ltd,0000009169,"47,833.20",External Consultancy Fees
DEPARTMENT OF HEALTH,BLACKPOOL TEACHING HOSPITALS NHS FT ,Jun-21,Corporate ,Corporate ,Qiagen Ltd,96284640,"121,346.40",Laboratory Test Kits
DEPARTMENT OF HEALTH,BLACKPOOL TEACHING HOSPITALS NHS FT ,Jun-21,Facilities ,Ict Operations,Service Desk Institute,50100,"28,500.00",Service Desk Institute Certification 
DEPARTMENT OF HEALTH,BLACKPOOL TEACHING HOSPITALS NHS FT ,Jun-21,Contractual Clinical Services,Contractual Clinical Services,Siemens Financial Services Ltd,220/21/0018242,"31,394.05",Centralised Decontamination Unit
DEPARTMENT OF HEALTH,BLACKPOOL TEACHING HOSPITALS NHS FT ,Jun-21,Facilities ,Ict Operations,Sitekit Applications Ltd,1139,"69,075.00",Computer Maintenance
DEPARTMENT OF HEALTH,BLACKPOOL TEACHING HOSPITALS NHS FT ,Jun-21,Facilities ,Ict Operations,Sitekit Applications Ltd,1140,"79,022.40",Computer Maintenance
DEPARTMENT OF HEALTH,BLACKPOOL TEACHING HOSPITALS NHS FT ,Jun-21,Facilities ,Ict Operations,Sitekit Applications Ltd,1143,"49,500.00",Computer Maintenance
DEPARTMENT OF HEALTH,BLACKPOOL TEACHING HOSPITALS NHS FT ,Jun-21,Facilities ,Ict Operations,Sitekit Applications Ltd,1148,"43,680.00",Computer Maintenance
DEPARTMENT OF HEALTH,BLACKPOOL TEACHING HOSPITALS NHS FT ,Jun-21,Facilities ,Ict Operations,Sitekit Applications Ltd,1150,"55,800.00",Computer Maintenance
DEPARTMENT OF HEALTH,BLACKPOOL TEACHING HOSPITALS NHS FT ,Jun-21,Facilities ,Ict Operations,Sitekit Applications Ltd,1151,"30,000.00",Computer Maintenance
DEPARTMENT OF HEALTH,BLACKPOOL TEACHING HOSPITALS NHS FT ,Jun-21,Facilities ,Ict Operations,Sitekit Applications Ltd,1152,"32,652.00",Computer Maintenance
DEPARTMENT OF HEALTH,BLACKPOOL TEACHING HOSPITALS NHS FT ,Jun-21,Facilities ,Ict Operations,Sitekit Applications Ltd,1153,"67,800.00",Computer Maintenance
DEPARTMENT OF HEALTH,BLACKPOOL TEACHING HOSPITALS NHS FT ,Jun-21,Facilities ,Ict Operations,Sitekit Applications Ltd,1154,"49,500.00",Computer Maintenance
DEPARTMENT OF HEALTH,BLACKPOOL TEACHING HOSPITALS NHS FT ,Jun-21,Facilities ,Ict Operations,Sitekit Applications Ltd,1156,"54,000.00",Computer Maintenance
DEPARTMENT OF HEALTH,BLACKPOOL TEACHING HOSPITALS NHS FT ,Jun-21,Facilities ,Ict Operations,Sitekit Applications Ltd,1158,"33,000.00",Computer Maintenance
DEPARTMENT OF HEALTH,BLACKPOOL TEACHING HOSPITALS NHS FT ,Jun-21,Facilities ,Ict Operations,Sitekit Applications Ltd,1162,"49,500.00",Computer Maintenance
DEPARTMENT OF HEALTH,BLACKPOOL TEACHING HOSPITALS NHS FT ,Jun-21,Facilities ,Ict Operations,Sitekit Applications Ltd,1171,"26,200.48",Computer Maintenance
DEPARTMENT OF HEALTH,BLACKPOOL TEACHING HOSPITALS NHS FT ,Jun-21,Facilities ,Ict Maintenance Services,Softcat Plc,INV02944329,"78,000.00",Computer Maintenance
DEPARTMENT OF HEALTH,BLACKPOOL TEACHING HOSPITALS NHS FT ,Jun-21,Facilities ,Refuse & Clinical Waste,Srcl Ltd,0001554911,"29,132.51",Contract : Refuse And Clinical Waste
DEPARTMENT OF HEALTH,BLACKPOOL TEACHING HOSPITALS NHS FT ,Jun-21,Facilities ,Refuse & Clinical Waste,Srcl Ltd,0001583095,"38,126.16",Contract : Refuse And Clinical Waste
DEPARTMENT OF HEALTH,BLACKPOOL TEACHING HOSPITALS NHS FT ,Jun-21,Capital Purchases ,Capital Purchases ,Integrated Health Projects Joint Venture,21050039,"113,103.54",Capital Purchases 
DEPARTMENT OF HEALTH,BLACKPOOL TEACHING HOSPITALS NHS FT ,Jun-21,Capital Purchases ,Capital Purchases ,Integrated Health Projects Joint Venture,21060032,"634,629.97",Capital Purchases 
DEPARTMENT OF HEALTH,BLACKPOOL TEACHING HOSPITALS NHS FT ,Jun-21,Capital Purchases ,Capital Purchases ,Connell Brothers Ltd,217,"59,548.14",Capital Purchases 
DEPARTMENT OF HEALTH,BLACKPOOL TEACHING HOSPITALS NHS FT ,Jun-21,Capital Purchases ,Capital Purchases ,D & G Builders & Joiners Ltd,52736,"139,094.72",Capital Purchases 
DEPARTMENT OF HEALTH,BLACKPOOL TEACHING HOSPITALS NHS FT ,Jun-21,Capital Purchases ,Capital Purchases ,D & G Builders & Joiners Ltd,52840,"82,104.07",Capital Purchases 
DEPARTMENT OF HEALTH,BLACKPOOL TEACHING HOSPITALS NHS FT ,Jun-21,Capital Purchases ,Capital Purchases ,Integrated Medical Solutions Ltd,SIN602627,"117,179.77",Capital Purchases 
DEPARTMENT OF HEALTH,BLACKPOOL TEACHING HOSPITALS NHS FT ,Jun-21,Capital Purchases ,Capital Purchases ,Integrated Medical Solutions Ltd,SIN602633,"29,337.60",Capital Purchases 
DEPARTMENT OF HEALTH,BLACKPOOL TEACHING HOSPITALS NHS FT ,Jun-21,Capital Purchases ,Capital Purchases ,Strata Health Solutions Ltd,0548,"52,508.70",Capital Purchases 
DEPARTMENT OF HEALTH,BLACKPOOL TEACHING HOSPITALS NHS FT ,Jun-21,Capital Purchases ,Capital Purchases ,Strata Health Solutions Ltd,0565,"52,508.70",Capital Purchases 
DEPARTMENT OF HEALTH,BLACKPOOL TEACHING HOSPITALS NHS FT ,Jun-21,Capital Purchases ,Capital Purchases ,Strata Health Solutions Ltd,0574,"52,508.70",Capital Purchases 
DEPARTMENT OF HEALTH,BLACKPOOL TEACHING HOSPITALS NHS FT ,Jun-21,Capital Purchases ,Capital Purchases ,D & G Builders & Joiners Ltd,52734,"468,605.89",Capital Purchases 
DEPARTMENT OF HEALTH,BLACKPOOL TEACHING HOSPITALS NHS FT ,Jun-21,Capital Purchases ,Capital Purchases ,D & G Builders & Joiners Ltd,52836,"355,338.61",Capital Purchases 
DEPARTMENT OF HEALTH,BLACKPOOL TEACHING HOSPITALS NHS FT ,Jun-21,Capital Purchases ,Capital Purchases ,Siemens Healthcare Diagnostics Ltd,1051097513,"53,316.00",Capital Purchases 
DEPARTMENT OF HEALTH,BLACKPOOL TEACHING HOSPITALS NHS FT ,Jun-21,Capital Purchases ,Capital Purchases ,Livanova Uk Ltd,2021203915,"50,930.40",Capital Purchases 
DEPARTMENT OF HEALTH,BLACKPOOL TEACHING HOSPITALS NHS FT ,Jun-21,Pharmacy Drugs Inventory ,Pharmacy Drugs Inventory ,Aah Hospital Service,48490692R,"28,983.96",Pharmacy Drugs Inventory 
DEPARTMENT OF HEALTH,BLACKPOOL TEACHING HOSPITALS NHS FT ,Jun-21,Pharmacy Drugs Inventory ,Pharmacy Drugs Inventory ,Alloga Uk Ltd,SIN103189662,"36,000.00",Pharmacy Drugs Inventory 
DEPARTMENT OF HEALTH,BLACKPOOL TEACHING HOSPITALS NHS FT ,Jun-21,Pharmacy Drugs Inventory ,Pharmacy Drugs Inventory ,Alloga Uk Ltd,SIN103197642,"35,100.00",Pharmacy Drugs Inventory 
DEPARTMENT OF HEALTH,BLACKPOOL TEACHING HOSPITALS NHS FT ,Jun-21,Pharmacy Drugs Inventory ,Pharmacy Drugs Inventory ,Baxter Healthcare Ltd,21125983,"59,219.76",Pharmacy Drugs Inventory 
DEPARTMENT OF HEALTH,BLACKPOOL TEACHING HOSPITALS NHS FT ,Jun-21,Pharmacy Drugs Inventory ,Pharmacy Drugs Inventory ,Baxter Healthcare Ltd,21145764,"49,281.18",Pharmacy Drugs Inventory 
DEPARTMENT OF HEALTH,BLACKPOOL TEACHING HOSPITALS NHS FT ,Jun-21,Pharmacy Drugs Inventory ,Pharmacy Drugs Inventory ,Bayer Plc,824C349963,"107,213.58",Pharmacy Drugs Inventory 
DEPARTMENT OF HEALTH,BLACKPOOL TEACHING HOSPITALS NHS FT ,Jun-21,Pharmacy Drugs Inventory ,Pharmacy Drugs Inventory ,Bayer Plc,824C351520,"45,622.80",Pharmacy Drugs Inventory 
DEPARTMENT OF HEALTH,BLACKPOOL TEACHING HOSPITALS NHS FT ,Jun-21,Pharmacy Drugs Inventory ,Pharmacy Drugs Inventory ,Bayer Plc,824C353903,"88,964.46",Pharmacy Drugs Inventory 
DEPARTMENT OF HEALTH,BLACKPOOL TEACHING HOSPITALS NHS FT ,Jun-21,Pharmacy Drugs Inventory ,Pharmacy Drugs Inventory ,Janssen-Cilag Ltd,930756497,"26,960.40",Pharmacy Drugs Inventory 
DEPARTMENT OF HEALTH,BLACKPOOL TEACHING HOSPITALS NHS FT ,Jun-21,Pharmacy Drugs Inventory ,Pharmacy Drugs Inventory ,Lloyds Pharmacy Ltd,0000098581,"791,801.10",Pharmacy Drugs Inventory 
DEPARTMENT OF HEALTH,BLACKPOOL TEACHING HOSPITALS NHS FT ,Jun-21,Pharmacy Drugs Inventory ,Pharmacy Drugs Inventory ,Lloyds Pharmacy Ltd,0000100043,"842,774.41",Pharmacy Drugs Inventory 
DEPARTMENT OF HEALTH,BLACKPOOL TEACHING HOSPITALS NHS FT ,Jun-21,Pharmacy Drugs Inventory ,Pharmacy Drugs Inventory ,Lloyds Pharmacy Ltd,0000100605,"953,932.01",Pharmacy Drugs Inventory 
DEPARTMENT OF HEALTH,BLACKPOOL TEACHING HOSPITALS NHS FT ,Jun-21,Pharmacy Drugs Inventory ,Pharmacy Drugs Inventory ,Novartis Pharmaceuticals Uk Ltd,92450074,"56,095.20",Pharmacy Drugs Inventory 
DEPARTMENT OF HEALTH,BLACKPOOL TEACHING HOSPITALS NHS FT ,Jun-21,Pharmacy Drugs Inventory ,Pharmacy Drugs Inventory ,Novartis Pharmaceuticals Uk Ltd,92456733,"42,739.20",Pharmacy Drugs Inventory 
DEPARTMENT OF HEALTH,BLACKPOOL TEACHING HOSPITALS NHS FT ,Jun-21,Pharmacy Drugs Inventory ,Pharmacy Drugs Inventory ,Qualasept Ltd,SQS00085039,"32,847.36",Pharmacy Drugs Inventory 
DEPARTMENT OF HEALTH,BLACKPOOL TEACHING HOSPITALS NHS FT ,Jun-21,Pharmacy Drugs Inventory ,Pharmacy Drugs Inventory ,Qualasept Ltd,SQS0081250,"57,030.24",Pharmacy Drugs Inventory 
DEPARTMENT OF HEALTH,BLACKPOOL TEACHING HOSPITALS NHS FT ,Jun-21,Pharmacy Drugs Inventory ,Pharmacy Drugs Inventory ,Qualasept Ltd,SQS0085707,"57,030.24",Pharmacy Drugs Inventory 
DEPARTMENT OF HEALTH,BLACKPOOL TEACHING HOSPITALS NHS FT ,Jun-21,Multi-Divisional charge ,Multi-Divisional charge ,St Helens and Knowsley Hospital Services NHS Trust,16806030,"720,000.00",Inter NHS Medical staff recharges
DEPARTMENT OF HEALTH,BLACKPOOL TEACHING HOSPITALS NHS FT ,Jun-21,Multi-Divisional charge ,Multi-Divisional charge ,NHS Supply Chain Co-ordination Limited,1122036545,"308,745.54",NHS Supply Chain Catalogue items
DEPARTMENT OF HEALTH,BLACKPOOL TEACHING HOSPITALS NHS FT ,Jun-21,Multi-Divisional charge ,Multi-Divisional charge ,NHS Supply Chain Co-ordination Limited,1122040371,"181,130.09",NHS Supply Chain Catalogue items
DEPARTMENT OF HEALTH,BLACKPOOL TEACHING HOSPITALS NHS FT ,Jun-21,Multi-Divisional charge ,Multi-Divisional charge ,NHS Supply Chain Co-ordination Limited,1122045006,"144,732.61",NHS Supply Chain Catalogue items
DEPARTMENT OF HEALTH,BLACKPOOL TEACHING HOSPITALS NHS FT ,Jun-21,Multi-Divisional charge ,Multi-Divisional charge ,NHS Supply Chain Co-ordination Limited,1122049890,"181,302.59",NHS Supply Chain Catalogue items
DEPARTMENT OF HEALTH,BLACKPOOL TEACHING HOSPITALS NHS FT ,Jun-21,Multi-Divisional charge ,Multi-Divisional charge ,NHS Supply Chain Co-ordination Limited,1122054906,"367,529.79",NHS Supply Chain Catalogue items
